Cogmind - Beta 10.2 @@@ ROGUE MODE // 2022.02.05 @ 15:42:47 Player: Conner Result: Destroyed by G-34 Mercenary with Small Laser Performance ------------- Evolutions (1) 500 Regions Visited (2) 400 Robots Destroyed (24) 120 Value Destroyed (395) 395 Prototype IDs (2) 40 Alien Tech Used (0) 0 Bonus (0) 0 TOTAL SCORE: 1455 Bonus ------- None Cogmind --------- Core Integrity 0/400 Matter 300/300 Energy 99/100 System Corruption 0% Temperature Cool (6) Movement Core (50) Location -9/Materials Parts ------- > --- POWER (1) -------- (None) > --- PROPULSION (3) --- (None) > --- UTILITY (3) ------ Improved Signal Interpreter Terrain Scan Processor > --- WEAPON (2) ------- (None) > --- INVENTORY (4) ---- Light Ion Engine Light Ion Engine Improved Heat Sink Peak State ------------ > --- POWER ------------ Light Ion Engine > --- PROPULSION ------- Wheel Wheel > --- UTILITY ---------- Improved Terrain Scanner Terrain Scan Processor > --- WEAPON ----------- Assault Rifle Light Assault Rifle > --- INVENTORY -------- Light Ion Engine Light Ion Engine Wheel Light Assault Rifle [Rating: 9] Favorites ----------- Power Light Ion Engine Engine Light Ion Engine Propulsion Wheel Wheel Wheel Flight Unit Flight Unit Utility Improved Terrain Scanner Device Improved Terrain Scanner Processor Terrain Scan Processor Weapon Light Assault Rifle Energy Gun Small Laser Ballistic Gun Light Assault Rifle Special Weapon Plasma Cutter Build | -11 -10 -9 ------- Run | Scr Mat Mat Slots Evolved 2 | . . 2 Power . | . . . Propulsion 1 | . . 1 Utility 1 | . . 1 Weapon . | . . . Parts Attached 23 | 7 4 12 Power 3 | 1 1 1 Engine 3 | 1 1 1 Core . | . . . Reactor . | . . . Propulsion 5 | 2 1 2 Treads . | . . . Leg . | . . . Wheel 3 | 2 1 . Hover . | . . . Flight 2 | . . 2 Utility 6 | 2 1 3 Device 2 | 1 . 1 Storage . | . . . Processor 4 | 1 1 2 Hackware . | . . . Protection . | . . . Artifact . | . . . Weapon 9 | 2 1 6 Energy Gun 2 | . . 2 Energy Cannon . | . . . Ballistic Gun 6 | 2 1 3 Ballistic Cannon . | . . . Launcher . | . . . Special Weapon 1 | . . 1 Impact Weapon . | . . . Slashing Weapon . | . . . Piercing Weapon . | . . . Special Melee Weapon . | . . . Unidentified Prototypes . | . . . Parts Lost 17 | . 1 16 Power 2 | . . 2 Propulsion 5 | . 1 4 Utility 2 | . . 2 Weapon 8 | . . 8 Highest Loss Streak 13 | . 1 13 Average Slot Usage (%) 78 | . 100 44 Engine 10 | . 14 3 Wheel 18 | . 28 3 Device 12 | . 14 9 Processor 14 | . 14 14 Ballistic Gun 20 | . 28 8 Naked Turns . | . . . Heaviest Build 9 | 7 9 9 Greatest Support 20 | 20 20 20 Greatest Overweight (x) 1 | . . 1 Average Overweight (x) . | . . . Largest Inventory Capacity 4 | 4 4 4 Average Capacity 4 | 4 4 4 Most Carried 4 | 4 4 4 Average Carried 3 | 2 3 3 Final Capacity 4 | 4 4 4 Final Carried 4 | 4 4 3 Class Distribution -------------------- 78% | Mutant 21% | Scavenger-Mutant Dominant Class ---------------- Mutant | -10/Materials Mutant | -9/Materials Resources | -11 -10 -9 ----------- Run | Scr Mat Mat Matter Collected 603 | 349 156 98 Remotely . | . . . Salvage Created 646 | 144 198 304 Parts 43 | 11 11 21 Haulers Intercepted 1 | . 1 . Recyclers Shooed . | . . . Parts Field Recycled . | . . . Retrieved Matter . | . . . Parts Self-Destructed . | . . . Prevented . | . . . Kills | -11 -10 -9 ------- Run | Scr Mat Mat Combat Hostiles Destroyed 14 | . 3 11 Melee 1 | . . 1 Guns 13 | . 3 10 Classes Destroyed 8 | 3 5 . Worker 1 | 1 . . Builder 1 | . 1 . Tunneler 4 | 4 . . Hauler 1 | . 1 . Recycler 1 | 1 . . Watcher 2 | . 1 1 Swarmer 7 | . 1 6 Grunt 7 | . 2 5 Best Kill Streak 7 | 4 3 7 Combat Bots Only 6 | . 2 6 Max Kills in Single Turn 1 | 1 1 1 Gunslinging . | . . . Exploded . | . . . Melee 1 | . . 1 Uniques/NPCs Destroyed . | . . . Combat | -11 -10 -9 -------- Run | Scr Mat Mat Damage Taken 1268 | . 100 1168 Core 407 | . . 407 Absorbed by Shields . | . . . Core Remaining (%) 100 | 100 100 . Volleys Fired 105 | 26 24 55 Largest 2 | 2 2 2 Hottest 60 | 40 40 60 Shots Fired 173 | 52 48 73 Gun 172 | 52 48 72 Cannon . | . . . Launcher . | . . . Special 1 | . . 1 Kinetic 164 | 52 48 64 Thermal 9 | . . 9 Explosive . | . . . Electromagnetic . | . . . Robot Hit Streak 12 | 12 4 9 Robot Miss Streak 5 | 2 5 4 Penetration Max . | . . . Secondary Targets 4 | . 1 3 Max Gunslinging Chain 1 | . 1 1 Shots Hit Robots 114 | 37 27 50 Core Hits 45 | 9 13 23 Critical Hits 3 | . 3 . Critical Kills . | . . . Critical Parts Destroyed 3 | . 3 . Melee Attacks . | . . . Impact . | . . . Slashing . | . . . Piercing . | . . . Sneak Attacks . | . . . Combat Hostiles . | . . . Follow-up Attacks . | . . . Damage Inflicted 1201 | 354 315 532 Guns 1160 | 354 315 491 Cannons . | . . . Explosions . | . . . Melee . | . . . Ramming 29 | . . 29 Kinetic 1093 | 354 315 424 Thermal 79 | . . 79 Explosive . | . . . Electromagnetic . | . . . Impact . | . . . Slashing . | . . . Piercing . | . . . Highest Corruption . | . . . Average Corruption . | . . . Corruption Purged . | . . . Overload Shots . | . . . Overflow Damage . | . . . Projectiles . | . . . Explosions . | . . . Melee . | . . . Knockbacks . | . . . Impact . | . . . Kinetic . | . . . Secondary . | . . . Self-Inflicted Damage 14 | . . 14 Shots . | . . . Rammed 5 | . . 5 Targets Rammed 5 | . . 5 Kicked . | . . . Crushed . | . . . Highest Temperature 24 | . 9 24 Average Temperature 7 | . 7 7 Received Heat Transfer 387 | . 48 339 Siege Activations . | . . . Robots Corrupted . | . . . Combat Hostiles . | . . . Parts Fried . | . . . Impact Corruptions . | . . . Robots Melted . | . . . Combat Hostiles . | . . . Parts Melted . | . . . Heat Transferred 187 | . . 187 Parts Sabotaged . | . . . Parts Stolen . | . . . Parts Stripped . | . . . Power Chain Reactions . | . . . Missiles Intercepted . | . . . Alert | -11 -10 -9 ------- Run | Scr Mat Mat Peak Influence 165 | 30 165 159 Initial 19 | . 19 14 Average 62 | 11 70 84 Maximum Alert Level . | . . . Low Security (%) 100 | 100 100 100 Level 1 . | . . . Level 2 . | . . . Level 3 . | . . . Level 4 . | . . . Level 5 . | . . . High Security . | . . . Max Security . | . . . Squads Dispatched 5 | . . 5 Investigation 1 | . . 1 Extermination . | . . . Reinforcement 4 | . . 4 Assault . | . . . Garrison . | . . . Intercept . | . . . Construction Impeded . | . . . Haulers Reinforced . | . . . Stealth | -11 -10 -9 --------- Run | Scr Mat Mat Distress Signals 3 | . 3 . Communications Jammed . | . . . Distress Signals . | . . . Times Spotted 36 | . 9 27 Peak Tracking Total 6 | . 3 6 Tactical Retreats 4 | . 2 2 Traps | -11 -10 -9 ------- Run | Scr Mat Mat Traps Triggered 2 | . 1 1 Indirectly . | . . . Trap Hack Attempts . | . . . Triggered . | . . . Disarmed . | . . . Reprogrammed . | . . . Reused . | . . . Traps Extracted . | . . . Installed . | . . . Triggered . | . . . Machines | -11 -10 -9 ---------- Run | Scr Mat Mat Machines Disabled . | . . . Max in Single Turn . | . . . Machines Sabotaged . | . . . Garrisons Compromised . | . . . Overloaded Fab Kills . | . . . Fab Network Shutdowns . | . . . Hacking | -11 -10 -9 --------- Run | Scr Mat Mat Machines Accessed 5 | . 3 2 Terminals 4 | . 2 2 Fabricators . | . . . Repair Stations . | . . . Recycling Units 1 | . 1 . Scanalyzers . | . . . Garrison Access . | . . . Total Hacks 18 | . 11 7 Successful 12 | . 9 3 Failed 6 | . 2 4 Catastrophic . | . . . Database Lockouts . | . . . Manual 15 | . 8 7 Terminals 14 | . 7 7 Fabricators . | . . . Repair Stations . | . . . Recycling Units 4 | . 4 . Scanalyzers . | . . . Garrison Access . | . . . Terminal Hacks 5 | . 4 1 Prototype ID Bank 1 | . 1 . Terminal Index 1 | . 1 . Unreport Threat 1 | . . 1 Hauler Manifests 1 | . 1 . Zone Layout 1 | . 1 . Fabricator Hacks . | . . . Repair Station Hacks . | . . . Recycling Unit Hacks . | . . . Scanalyzer . | . . . Garrison Access Hacks . | . . . Unauthorized Hacks 7 | . 5 2 Terminals 4 | . 2 2 Botnet 4 | . 2 2 Fabricators . | . . . Repair Stations . | . . . Recycling Units 3 | . 3 . Monitor 1 | . 1 . Reject 1 | . 1 . Mask 1 | . 1 . Scanalyzers . | . . . Garrison Access . | . . . Data Cores Recovered . | . . . Used . | . . . Hacking Detections 5 | . 3 2 Full Trace Events . | . . . Feedback Events . | . . . Feedback Blocked . | . . . Robot Schematics Acquired . | . . . Robots Built . | . . . Matter . | . . . Time . | . . . Total Robot Build Rating . | . . . Part Schematics Acquired . | . . . Parts Built . | . . . Matter . | . . . Time . | . . . Total Part Build Rating . | . . . Parts Repaired . | . . . Time . | . . . Parts Recycled . | . . . Recycled Matter . | . . . Retrieved Matter . | . . . Retrieved Components . | . . . Parts Scanalyzed . | . . . Part Schematics Acquired . | . . . Parts Damaged . | . . . Bothacking | -11 -10 -9 ------------ Run | Scr Mat Mat Used RIF Installer . | . . . Robots Hacked . | . . . Non-combat . | . . . Combat . | . . . Robot Hacks Applied . | . . . Relay Couplers Released . | . . . Robots Rewired . | . . . Allies Hacked . | . . . Hacks Repelled . | . . . Allies | -11 -10 -9 -------- Run | Scr Mat Mat Total Allies . | . . . Largest Group . | . . . Highest-Rated Group . | . . . Highest-Rated Ally . | . . . Total Orders . | . . . Ally Attacks . | . . . Total Damage . | . . . Kills . | . . . Allies Corrupted . | . . . Allies Melted . | . . . Intel | -11 -10 -9 ------- Run | Scr Mat Mat Robot Analysis Total . | . . . Derelict Logs Recovered . | . . . Drone Launches . | . . . Drone Recoveries . | . . . Exploration | -11 -10 -9 ------------- Run | Scr Mat Mat Turns Passed 900 | 184 441 275 Spaces Moved 812 | 122 458 232 Core 200 | 1 . 199 Treads . | . . . Legs . | . . . Wheels 604 | 121 458 25 Hover . | . . . Flight 8 | . . 8 Fastest Speed 37 | 50 80 37 Average Speed 72 | 79 80 54 Slowest Speed 120 | 80 80 120 Overloaded Moves . | . . . Propulsion Burnouts . | . . . Robots Hopped . | . . . Cave-ins Triggered . | . . . Exploration Rate (%) 23 | 7 29 34 Regions Visited 2 Branch Regions . Pre-discovered Areas . | . . . Known Exits Taken . | . . . Unknown Exits Taken 2 | 1 1 . Scrap Searched . | . . . Spaces Dug . | . . . Terrain Destroyed . | . . . Melee . | . . . Projectile . | . . . AOE . | . . . Terrain Rammed . | . . . Walls Destroyed . | . . . Machines Disabled . | . . . Actions | -11 -10 -9 --------- Run | Scr Mat Mat Total 961 | 158 489 314 Wait 9 | . . 9 Move 810 | 121 457 232 Hop . | . . . Pick Up 7 | 4 2 1 Fast Attach 18 | 7 1 10 Attach 2 | . 1 1 Detach . | . . . Swap 3 | . 2 1 Drop 2 | . 2 . Fire 105 | 26 24 55 Melee . | . . . Ram 5 | . . 5 Kick . | . . . Crush . | . . . Escape Stasis . | . . . Rewire . | . . . Trap . | . . . Miscellaneous . | . . . Route ------- -11/Scrapyard -10/Materials -9/Materials History --------- Turn | Location | Event 5 | -11/Scrapyard | Discovered new exit (range 15) 185 | -11/Scrapyard | Entered Materials 326 | -10/Materials | Build established: Mutant 379 | -10/Materials | Discovered new exit (range 12) 626 | -10/Materials | Entered another Materials area 626 | -9/Materials | Evolved 2 slots: Propulsion x1, Utility x1 801 | -9/Materials | Lost 13 parts (2p4n1u6w) 832 | -9/Materials | Core integrity fell below 50% 866 | -9/Materials | Core integrity fell below 20% 901 | -9/Materials | Destroyed by G-34 Mercenary with Small Laser Last Messages --------------- 00833_ K-01 Serf collects debris. 00836_ K-01 Serf cleans the Atomic Centrifuge. 00837_ O-16 Technician: "IFF HANDSHAKE FAILED. SECURING TERMINAL." 00840_ K-01 Serf cleans the Atomic Centrifuge. 00842_ K-01 Serf collects debris. 00842_ ALERT: Hostiles spotted, dispatching reinforcements to Terminal M011. 00853_ Triggered Alarm Trap. 00853_ An alarm sounds. 00853_ ALERT: Alarm triggered, dispatching investigation squad. 00863_ Slammed into S-10 Pest. 00863_ S-10 Pest destroyed. 00864_ Acquired 17 matter. 00866_ Acquired Lgt. Assault Rifle. 00869_ S-10 Pest destroyed. 00897_ Slammed into G-47 Trooper. 00898_ Heat Sink destroyed. 00898_ Slammed into G-47 Trooper. 00898_ Destabilizing: Core damaged (-20). 00899_ Lgt. Assault Rifle destroyed. Map ----- +----------------------------------------------------+ | | | | | | | | | | | | | | | | | | | | | | | ?????????????#??????#########????????????????????? | | ????????????# """? # #????????????????????? | | ????????????# """"" # """ #????????????????????? | | ????????????# """"" # """ #????????????????????? | | ?????######## """"" # """ #????????????????????? | | ?????# # """ # #????????????????????? | | ?????# """# # """ #????????????????????? | | ?????# """# # """ #????????????????????? | | ?????#! """# # """ #????????????????????? | | ?????? # # #????????????????????? | | ???????? ###+###### #????????????????????? | | ???????###+## #######+####????????????????????? | | ???????# = % #?????????????????????? | | ???????# =%=%* #?????????????????????? | | ???????# """ """ @##?????????????????????? | | ???????####### """ """ #??????????????????????? | | ?????????????# """ """g #??????????????????????? | | ???????####??# """ g#??????????????????????? | | ?????? ?# u #??????????????????????? | | ???## "" ?# t #??????????????????????? | | ???# """ # ######## #??????????????????????? | | ????# S" # #??????# #???????????? ?????????? | | ????# """ + #??????# ######### ?????????? | | ????# """ # ######## ?????????? | | ????? # #! + ?????????? | | ????# * ?# # ## """ """??????????????? | | ????# ?# # ! ##w """ """?? ???######### | | ????#######??# + ! ## """ """ #??# ! | | ?????????????# # ## #??# | | ?????????????# # = ## #??# | | ?????????????# ######### """ """ #??# | | ?????????????# #???????# """ """?? ???# | | ?????????????+ +???????# """ """ #??# | | ?????????????# #???????# #??# | | ?????????????+ #???????# #??? | | ?????????????#+########## """ """ #????? ? | | ?????????????????+ """ """ ########+##? | | ?????????????????######## """ """ """ #? | | ????????????????????????# "R" #? | +----------------------------------------------------+ Best States ------------- Heat Dissipation 38 Energy Generation 10 Energy Capacity 250 Matter Stores 300 Matter Capacity 300 Sight Range 16 Terrain Scan Range 16 Terrain Scan Density 85 Evasion (%) 50 Item Schematics ----------------- None Robot Schematics ------------------ None Fabricated ------------ Nothing Alien Tech Used ----------------- None Achievements -------------- None Challenges ------------ None Game ------ Seed SkeletonComponentAnalyzer Manual? 0 Play Time 00:11:18 Cumulative 31.6 hours Start 2022.02.05 @ 15:34:25 End 2022.02.05 @ 15:42:47 Sessions 1 Manual Loads 0 Difficulty Rogue Special Mode None Game No. 49 Rogue 49 Adventurer 0 Explorer 0 Win Type - Total 0 Types 0/0/0/0/0/0/0/0/0 Lore% 46 Gallery% 43 Achievement% 36 Wizard Run 0 Options --------- ASCII 0 Keyboard 0 Movement Numpad Keybinds 0 Fullscreen 1 Font 24/Smallcaps Map View 76x50 Tactical HUD 1 Map Filters NONE Filters NONE Steam 1 RUN: 97cc4df0-f90d-4fd4-9a17-b0c720fb7825